bitfinex-derivatives/quotes_BNBF0:USTF0_20250211
["timestamp","ask_amount","ask_price","bid_price","bid_amount"]
[1739271544764,0.30100763,639.45,638.15,1.16062582]
[1739271544969,0.30100763,639.45,638.16,0.28755372]
[1739271550265,0.30100763,639.45,638.2,1.16062582]
[1739271550464,0.30100763,639.45,638.21,0.28755372]
[1739271552577,0.30100763,639.45,638.22,0.28750215]
[1739271552766,0.30100763,639.45,638.21,0.28750215]
[1739271552967,0.30100763,639.45,638.22,0.28750215]
[1739271553474,0.30100763,639.45,638.34,1.16062582]
[1739271553676,0.30100763,639.45,638.35,0.28750215]
[1739271554675,0.30100763,639.45,638.35,0.99650215]
[1739271554874,0.30100763,639.45,638.36,0.28750215]
[1739271555774,0.30100763,639.45,638.35,0.709]
[1739271555978,0.30100763,639.45,638.36,0.28749498]
[1739271558975,0.30100763,639.45,638.4,1.16062582]
[1739271559173,0.30100763,639.45,638.41,0.28749498]
[1739271561181,0.30100763,639.45,638.4,1.16062582]
[1739271561374,0.30100763,639.45,638.41,0.28747239]
[1739271561981,0.30100763,639.45,638.42,1.16062582]
[1739271562181,0.30100763,639.45,638.43,0.28747239]
[1739271564779,0.30100763,639.45,638.44,0.28747239]
[1739271564981,0.30100763,639.45,638.45,0.28747239]
[1739271565180,0.30100763,639.45,638.4,0.28747239]
[1739271565482,0.30100763,639.45,638.41,0.28747239]
[1739271565678,0.30100763,639.45,638.4,0.28747239]
[1739271565885,0.30100763,639.45,638.39,1.16062582]
[1739271566082,0.30100763,639.45,638.4,0.28740155]
[1739271566479,0.30100763,639.45,638.41,0.28740154]
[1739271566682,0.30100763,639.45,638.4,0.28740154]
[1739271566980,0.30100763,639.45,638.41,0.28740154]
[1739271567180,0.30100763,639.45,638.4,0.28740154]
[1739271567378,0.30100763,639.45,638.35,0.709]
[1739271567379,0.30100763,639.45,638.41,0.28740154]
[1739271567577,0.30100763,639.45,638.37,0.28740154]
[1739271568181,0.30100763,639.45,638.36,1.16062582]
[1739271568382,2.51523588,640.98,638.37,0.28739478]
[1739271568979,1.39134925,641.04,638.37,0.28739478]
[1739271569880,1.39134925,641.04,638.36,1.16062582]
[1739271570083,1.39134925,641.14,638.37,0.28740152]
[1739271570281,1.39134925,641.14,638.36,0.28740152]
[1739271570481,1.39134925,641.14,638.37,0.28740152]
[1739271570684,1.39134925,641.14,638.38,0.28740152]
[1739271570886,1.39134925,641.14,638.39,0.28740152]
[1739271571089,1.39134925,641.14,638.36,0.28740152]
[1739271571286,1.39134925,641.14,638.4,0.28740152]
[1739271571479,1.39134925,641.14,638.41,0.28740392]
[1739271571683,1.39134925,641.14,638.35,1.86962582]
[1739271571879,1.39134925,641.14,638.36,0.28740175]
[1739271572483,1.39134925,641.08,638.38,1.16062582]
[1739271572687,1.39134925,641.08,638.39,0.28740175]
[1739271574485,1.39134925,640.94,638.39,0.28740175]
[1739271574682,1.39134925,640.94,638.36,0.28740175]
[1739271574887,1.39134925,640.94,638.37,0.28740175]
[1739271575087,1.39134925,640.94,638.36,0.28740175]
[1739271575288,1.39134925,640.94,638.35,0.709]
[1739271575489,1.39134925,640.94,638.36,0.2874338]
[1739271577388,2.51523588,641.25,638.36,0.2874338]
[1739271577389,1.39134925,640.91,638.36,0.2874338]
[1739271578090,1.39134925,640.91,638.37,0.2874338]
[1739271578291,1.39134925,640.91,638.38,0.2874338]
[1739271578487,1.39134925,640.91,638.23,0.9381671]
[1739271578792,1.39134925,640.91,638.24,0.2874338]
[1739271578991,1.39134925,640.91,638.23,0.9964338]
[1739271579186,1.39134925,640.91,638.24,0.93821227]
[1739271579389,1.39134925,640.91,638.25,0.93820721]
[1739271579589,1.39134925,640.91,638.23,0.709]
[1739271579590,1.39134925,640.59,638.45,1.16062582]
[1739271579887,1.39134925,640.59,638.46,0.287429]
[1739271581390,1.39134925,640.37,638.46,0.287429]
[1739271581590,1.39134925,640.37,638.47,0.287429]
[1739271581788,1.39134925,640.37,638.3,0.93820055]
[1739271581993,1.39134925,640.37,638.31,0.287429]
[1739271582193,1.39134925,640.37,638.3,0.93820055]
[1739271582393,1.39134925,640.37,638.31,0.287429]
[1739271582587,1.39134925,640.37,638.32,0.287429]
[1739271582788,1.39134925,640.37,638.33,0.287429]
[1739271582986,1.39134925,640.37,638.34,0.287429]
[1739271583194,1.39134925,640.37,638.3,0.9382233]
[1739271583393,1.39134925,640.37,638.31,0.287429]
[1739271583588,1.39134925,640.37,638.32,0.287429]
[1739271583888,1.39134925,640.37,638.3,0.6507943]
[1739271584094,1.39134925,640.37,638.31,0.93821863]
[1739271584294,1.39134925,640.37,638.32,0.28743273]
[1739271584594,1.39134925,640.37,638.33,0.28743273]
[1739271584793,1.39134925,640.37,638.34,0.28743273]
[1739271584994,1.39134925,640.37,638.35,0.28743273]
[1739271585193,1.39134925,640.1,638.4,1.16062582]
[1739271585396,1.39134925,640.1,638.41,0.93821863]
[1739271585692,1.39134925,640.1,638.42,0.93818134]
[1739271586293,1.39134925,640.1,638.43,0.28742042]
[1739271586491,1.39134925,640.1,638.41,0.28742042]
[1739271586691,1.39134925,640.1,638.42,0.28742042]
[1739271586887,1.39134925,640.1,638.41,0.28742042]
[1739271587087,1.39134925,640.1,638.42,0.28742042]
[1739271587293,1.39134925,640.16,638.41,0.28742042]
[1739271587593,1.39134925,640.16,638.43,0.28742042]
[1739271587793,1.39134925,640.16,638.44,0.28742042]
[1739271587994,1.39134925,640.16,638.45,0.28742854]
[1739271588194,1.39134925,640.16,638.41,0.28742854]
[1739271588394,1.39134925,640.16,638.42,0.28742854]
[1739271588593,1.39134925,640.16,638.41,0.28742854]
[1739271588793,1.39134925,640.16,638.42,0.28742854]
[1739271588991,1.39134925,640.16,638.41,0.28742854]
[1739271589194,1.39134925,640.16,638.42,0.28742854]
[1739271589396,1.39134925,640.16,638.41,0.28742854]
[1739271589596,3.33715495,640.28,638.57,1.16062582]
[1739271589790,5.15745763,640.28,638.58,0.28742854]
[1739271589990,7.67269351,640.28,638.58,0.28742854]
[1739271590195,5.71191408,640.27,638.58,0.28742854]
[1739271590392,5.71191408,640.27,638.57,1.16062582]
[1739271590896,4.46104158,640.27,638.57,1.16062582]
[1739271591090,2.51523588,640.27,638.57,1.16062582]
[1739271591997,2.51523588,640.27,638.46,1.16062582]
[1739271592293,2.51523588,640.27,638.47,0.28747328]
[1739271592495,5.71191408,640.36,638.47,0.28747328]
[1739271592796,5.71191408,640.4,638.47,0.28747328]
[1739271593094,1.9458057,640.4,638.47,0.28747328]
[1739271593297,2.51523588,640.41,638.47,0.28747328]
[1739271593693,1.39134925,640.42,638.46,1.16062582]
[1739271593893,1.39134925,640.31,638.47,0.28747081]
[1739271594090,1.39134925,640.31,638.44,0.28747081]
[1739271594289,1.39134925,640.31,638.45,0.28747081]
[1739271594494,1.39134925,640.31,638.44,0.28747081]
[1739271594698,1.39134925,640.31,638.45,0.28747081]
[1739271594893,1.39134925,640.31,638.43,1.16062582]
[1739271595091,1.39134925,640.31,638.44,0.28747106]
[1739271596595,1.39134925,640.3,638.44,0.28747106]
[1739271596795,1.39134925,640.3,638.45,0.28748214]
[1739271596990,1.39134925,640.3,638.46,0.28748214]
[1739271597191,1.39134925,640.3,638.43,0.28748214]
[1739271597392,1.39134925,640.3,638.44,0.28748214]
[1739271597591,1.39134925,640.3,638.43,0.28748214]
[1739271597794,1.39134925,640.3,638.44,0.28748214]
[1739271597994,1.39134925,640.3,638.45,0.28748214]
[1739271598195,1.39134925,640.3,638.46,0.28748214]
[1739271598396,0.31236334,640.28,638.47,0.28748214]
[1739271598594,0.31236334,640.28,638.43,0.28748214]
[1739271598795,0.31236334,640.28,638.44,0.28748214]
[1739271598996,0.31236334,640.28,638.4,0.28748214]
[1739271599294,0.31236334,640.28,638.44,0.708]
[1739271599499,0.31236334,640.28,638.45,0.28748214]
[1739271603100,1.39134925,640.03,638.47,1.16062582]
[1739271603303,0.31249511,640.01,638.48,0.28748214]
[1739271605304,0.31249511,640.01,638.49,1.16062582]
[1739271605502,0.31249511,640.01,638.5,0.28748214]
[1739271608210,1.39134925,640.0,638.52,1.16062582]
[1739271608508,0.31250976,639.98,638.53,0.28752704]
[1739271610007,0.31250976,639.98,638.54,0.28752788]
[1739271610202,0.31250976,639.98,638.53,0.28752788]
[1739271610403,0.31250976,639.98,638.54,0.28752788]
[1739271610609,0.31250976,639.98,638.53,0.28752788]
[1739271610810,0.31250976,639.98,638.54,0.28752788]
[1739271611014,1.70385901,639.98,638.53,0.28752788]
[1739271611211,1.70385901,639.98,638.54,0.28752788]
[1739271611406,1.70385901,639.98,638.52,0.708]
[1739271612411,1.70385901,639.98,638.53,0.28752384]
[1739271612812,0.31250976,639.98,638.53,0.28752384]
[1739271616912,0.31250976,639.98,638.52,0.708]
[1739271617112,0.31250976,639.98,638.53,0.2874605]
[1739271617915,2.25831546,639.98,638.53,0.2874605]
[1739271618114,0.31250976,639.98,638.53,0.2874605]
[1739271620414,0.31250976,639.98,638.54,0.28745]
[1739271620610,0.31250976,639.98,638.55,0.28745]
[1739271620811,0.31250976,639.98,638.56,0.28745]
[1739271621013,0.31250976,639.98,638.53,0.28745]
[1739271621215,0.31250976,639.98,638.54,0.28745]
[1739271621515,0.31250976,639.98,638.55,0.28745]
[1739271621818,0.31250976,639.98,638.56,0.28745]
[1739271622116,0.31250976,639.98,638.57,0.28745]
[1739271622317,0.31250976,639.98,638.53,0.28745]
[1739271623617,0.31250976,639.98,638.52,0.708]
[1739271623816,0.31250976,639.98,638.53,0.28744468]
[1739271625717,0.31250976,639.98,638.54,0.28745036]
[1739271625911,0.31250976,639.98,638.53,0.28745036]
[1739271626111,0.31250976,639.98,638.54,0.28745036]
[1739271626317,0.31250976,639.98,638.53,0.28745036]
[1739271626516,0.31250976,639.98,638.54,0.28745036]
[1739271626717,0.31250976,639.98,638.55,0.28745036]
[1739271626915,0.31250976,639.98,638.53,0.28745036]
[1739271627118,0.31250976,639.98,638.54,0.28745036]
[1739271627317,0.31250976,639.98,638.52,0.708]
[1739271627515,0.31250976,639.98,638.53,0.2874424]
[1739271627714,0.31250976,639.98,638.57,1.16062582]
[1739271627917,0.31250976,639.98,638.58,0.2874424]
[1739271628517,0.31250976,639.98,638.58,0.9954424]
[1739271628716,0.31250976,639.98,638.59,0.2874424]
[1739271630720,0.31250976,639.98,638.61,1.16062582]
[1739271630912,0.31250976,639.98,638.62,0.2874424]
[1739271633020,0.31250976,639.98,638.63,0.2874424]
[1739271633220,0.31250976,639.98,638.64,0.2874424]
[1739271633420,0.31250976,639.98,638.65,0.2874424]
[1739271633621,0.31250976,639.98,638.66,0.2874424]
[1739271633821,0.31250976,639.98,638.67,0.2874424]
[1739271634017,0.31250976,639.98,638.59,0.2874424]
[1739271634221,0.31250976,639.98,638.6,0.2874424]
[1739271634414,0.31250976,639.98,638.61,0.2874424]
[1739271634621,0.31250976,639.98,638.59,0.2874424]
[1739271638023,0.31250976,639.98,638.6,0.28739343]
[1739271638224,0.31250976,639.98,638.59,0.28739343]
[1739271638424,0.31250976,639.98,638.6,0.28739343]
[1739271638622,0.31250976,639.98,638.59,0.28739343]
[1739271638822,0.31250976,639.98,638.6,0.28739343]
[1739271639021,0.31250976,639.98,638.59,0.28739343]
[1739271639227,0.31250976,639.98,638.6,0.28739343]
[1739271639425,0.31250976,639.98,638.59,0.28739343]
[1739271639627,0.31250976,639.98,638.6,0.28739343]
[1739271639827,0.31250976,639.98,638.61,0.28739592]
[1739271640027,0.31250976,639.98,638.59,0.28739592]
[1739271640228,0.31250976,639.98,638.6,0.28739592]
[1739271640430,0.31250976,639.98,638.61,0.28739592]
[1739271640726,0.31250976,639.98,638.62,0.28739592]
[1739271640929,0.31250976,639.98,638.63,0.28739592]
[1739271641124,0.31250976,639.98,638.59,0.28739592]
[1739271641324,0.31250976,639.98,638.6,0.28739592]
[1739271641629,0.31250976,639.98,638.61,0.28739592]
[1739271641825,0.31250976,639.98,638.59,0.28739592]
[1739271642129,0.31250976,639.98,638.6,0.28739592]
[1739271642432,0.31250976,639.98,638.61,0.28739592]
[1739271642629,0.31250976,639.98,638.62,0.28739592]
[1739271642830,0.31250976,639.98,638.63,0.28739592]
[1739271643024,0.31250976,639.98,638.64,0.28739592]
[1739271643229,0.31250976,639.98,638.65,0.28739592]
[1739271643530,0.31250976,639.98,638.66,0.28739592]
[1739271643830,0.31250976,639.98,638.67,0.28739592]
[1739271644030,0.31250976,639.98,638.59,0.28739592]
[1739271644230,0.31250976,639.98,638.6,0.28739592]
[1739271644531,0.31250976,639.98,638.61,0.28739592]
[1739271644723,0.31250976,639.98,638.58,0.708]
[1739271644724,0.31250976,639.98,638.59,0.28739592]
[1739271644929,0.31250976,639.98,638.62,0.28739592]
[1739271645131,0.31250976,639.98,638.63,0.28739592]
[1739271645333,0.31250976,639.98,638.64,0.28739592]
[1739271645632,0.31250976,639.98,638.65,0.28739592]
[1739271645833,0.31250976,639.98,638.59,0.28739592]
[1739271646033,0.31250976,639.98,638.6,0.28739592]
[1739271646333,0.31250976,639.98,638.61,0.28739592]
[1739271646527,0.31250976,639.98,638.59,0.28739592]
[1739271646729,0.31250976,639.98,638.58,0.708]
[1739271646933,0.31250976,639.98,638.59,0.28739215]
[1739271648434,0.31250976,639.98,638.58,0.708]
[1739271648634,0.31250976,639.98,638.59,0.28739453]
[1739271649536,0.31250976,639.98,638.61,1.16062582]
[1739271649733,0.31250976,639.98,638.62,0.28739453]
[1739271651831,0.31250976,639.98,638.65,1.16062582]
[1739271652032,0.31250976,639.98,638.66,0.28739453]
[1739271652433,0.31250976,639.98,638.65,1.16062582]
[1739271652735,0.31250976,639.98,638.66,0.28742677]
[1739271653829,0.31250976,639.98,638.65,1.16062582]
[1739271654032,0.31250976,639.98,638.66,0.28744531]
[1739271655035,0.31250976,639.98,638.59,0.28744531]
[1739271655235,0.31250976,639.98,638.6,0.28744531]
[1739271655435,0.31250976,639.98,638.59,0.28744531]
[1739271655838,0.31250976,639.98,638.59,0.99544531]
[1739271656033,0.31250976,639.98,638.6,0.28744531]
[1739271660941,0.31250976,639.98,638.6,1.44807113]
[1739271661140,0.31250976,639.98,638.61,0.28744531]
[1739271662239,0.31250976,639.98,638.62,0.28746146]
[1739271662439,0.31250976,639.98,638.61,0.28746146]
[1739271662745,0.31250976,639.98,638.62,0.28746146]
[1739271663046,0.31250976,639.98,638.63,0.28746146]
[1739271663343,0.31250976,639.98,638.64,0.28746146]
[1739271663546,0.31250976,639.98,638.61,0.28746146]
[1739271663745,0.31250976,639.98,638.62,0.28746146]
[1739271663946,0.31250976,639.98,638.63,0.28746146]
[1739271664248,0.31250976,639.98,638.64,0.28746146]
[1739271664548,0.31250976,639.98,638.65,0.28746146]
[1739271664739,0.31250976,639.98,638.6,0.28746146]
[1739271667646,0.31250976,639.98,638.61,0.28744253]
[1739271667846,0.31250976,639.98,638.6,0.28744253]
[1739271668844,0.31250976,639.98,638.63,1.16062582]
[1739271669041,0.31250976,639.98,638.64,0.28743234]
[1739271671544,0.31250976,639.98,638.62,0.28743234]
[1739271671739,0.31250976,639.98,638.63,0.28743234]
[1739271671946,0.31250976,639.98,638.63,0.708]
[1739271672143,0.31250976,639.98,638.64,0.28743234]
[1739271676546,0.31250976,639.98,638.63,0.708]
[1739271676749,0.31250976,639.98,638.64,0.28743722]
[1739271680154,0.31250976,639.98,638.63,0.708]
[1739271680452,0.31250976,639.98,638.64,0.2874323]
[1739271686762,0.31250976,639.98,638.67,1.16062582]
[1739271686958,0.31250976,639.98,638.68,0.2874323]
[1739271692356,0.31250976,639.98,638.66,0.2874323]
[1739271694658,0.31250976,639.98,638.65,1.16062582]
[1739271694659,0.31250976,639.98,638.67,0.28740386]
[1739271694860,0.31250976,639.98,638.69,1.16062582]
[1739271695061,0.31250976,639.98,638.7,0.28740386]
[1739271695857,0.31250976,639.98,638.69,1.16062582]
[1739271696362,0.31250976,639.98,638.69,1.86862582]
[1739271697963,0.31250976,639.98,638.69,0.708]
[1739271723977,3.78843286,639.97,638.69,0.708]
[1739271724182,0.31250976,639.98,638.69,0.708]
[1739271726288,1.39134925,639.81,638.69,0.708]
[1739271726882,1.39134925,639.81,637.16,1.16062582]
[1739271727083,0.31265632,639.68,637.17,0.28787751]
[1739271728187,0.31265632,639.68,637.18,0.31388304]
[1739271728487,0.31265632,639.68,637.19,0.28787751]
[1739271728788,0.31265632,639.68,637.2,0.28785577]
[1739271729187,0.31265632,639.68,637.2,0.93950206]
[1739271729889,0.31265632,639.68,637.19,0.31387812]
[1739271730089,0.31265632,639.68,637.2,0.93953568]
[1739271730886,0.31265632,639.68,637.21,0.28786604]
[1739271731085,0.31265632,639.68,637.22,0.28786604]
[1739271731290,0.31265632,639.68,637.23,0.28786604]
[1739271731489,0.31265632,639.68,637.24,0.28786604]
[1739271731691,0.31265632,639.68,637.25,0.28786604]
[1739271731990,0.31265632,639.68,637.26,0.28786604]
[1739271732191,0.31265632,639.68,637.27,0.28786604]
[1739271732395,0.31265632,639.68,637.28,0.28786604]
[1739271732693,0.31265632,639.68,637.29,0.28786604]
[1739271732894,0.31265632,639.68,637.22,1.16062582]
[1739271733097,0.31265632,639.68,637.23,0.93953568]
[1739271733297,0.31265632,639.68,637.24,0.28786604]
[1739271733596,0.31265632,639.68,637.25,0.28786604]
[1739271733798,0.31265632,639.68,637.26,0.28786604]
[1739271733991,0.31265632,639.68,637.27,0.28786604]
[1739271734195,0.31265632,639.68,637.28,0.28786604]
[1739271734392,0.31265632,639.68,637.29,0.28786604]
[1739271734593,0.31265632,639.68,637.24,0.28786604]
[1739271734899,0.31265632,639.68,637.25,0.28786604]
[1739271735099,0.31265632,639.68,637.26,0.28786604]
[1739271735295,0.31265632,639.68,637.27,0.28784493]
[1739271735493,0.31265632,639.68,637.28,0.28784493]
[1739271735693,0.31265632,639.68,637.29,0.28784493]
[1739271735893,0.31265632,639.68,637.22,1.16062582]
[1739271735894,0.31265632,639.68,637.3,0.28784493]
[1739271736198,0.31265632,639.68,637.31,0.28784493]
[1739271736498,0.31265632,639.68,637.32,0.28784493]
[1739271736700,0.31265632,639.68,637.33,0.28784493]
[1739271736901,0.31265632,639.68,637.34,0.28784493]
[1739271737100,0.31265632,639.68,637.27,0.65162703]
[1739271737101,0.31265632,639.68,637.35,0.28784493]
[1739271737399,0.31265632,639.68,637.36,0.28784493]
[1739271737595,0.31265632,639.68,637.37,0.28784493]
[1739271737800,0.31265632,639.68,637.38,0.28784493]
[1739271738101,0.31265632,639.68,637.39,0.28784493]
[1739271738301,0.31265632,639.68,637.4,0.28784493]
[1739271738599,0.31265632,639.68,637.41,0.28784493]
[1739271738800,0.31265632,639.68,637.31,1.16062582]
[1739271739000,0.31265632,639.68,637.32,0.93947196]
[1739271739195,0.31265632,639.68,637.33,0.28784493]
[1739271739495,0.31265632,639.68,637.34,0.28784493]
[1739271739800,0.31265632,639.68,637.35,0.28784493]
[1739271739999,0.31265632,639.68,637.36,0.28784493]
[1739271740201,0.31265632,639.68,637.37,0.28784493]
[1739271740401,0.31265632,639.68,637.38,0.28784493]
[1739271740595,0.31265632,639.68,637.39,0.28784493]
[1739271740800,0.31265632,639.68,637.4,0.28784493]
[1739271741000,0.31265632,639.68,637.41,0.28784493]
[1739271741201,0.31265632,639.68,637.42,0.28784493]
[1739271741496,0.31265632,639.68,637.43,0.28784493]
[1739271741696,0.31265632,639.68,637.35,0.28784493]
[1739271741903,0.31265632,639.68,637.36,0.28784493]
[1739271742201,0.31265632,639.68,637.37,0.28784493]
[1739271742402,0.31265632,639.68,637.38,0.28784493]
[1739271742603,0.31265632,639.68,637.39,0.28784493]
[1739271742903,0.31265632,639.68,637.4,0.28774571]
[1739271743104,0.31265632,639.68,637.41,0.60151549]
[1739271743305,0.31265632,639.68,637.42,1.25293579]
[1739271743506,0.31265632,639.68,637.43,1.25293087]
[1739271743809,0.31265632,639.68,637.44,1.25292595]
[1739271744104,0.31265632,639.68,637.45,1.25292102]
[1739271744299,0.31265632,639.68,637.55,1.16062582]
[1739271744605,0.31265632,639.68,637.56,0.93911479]
[1739271744803,0.31265632,639.68,637.57,0.28772754]
[1739271745005,0.31265632,639.68,637.58,0.28772754]
[1739271745205,0.31265632,639.68,637.59,0.28772754]
[1739271745505,0.31265632,639.68,637.6,0.28772754]
[1739271745805,0.31265632,639.68,637.61,0.28772754]
[1739271746006,0.31265632,639.68,637.62,0.28772754]
[1739271746207,0.31265632,639.68,637.63,0.28772754]
[1739271746503,0.31265632,639.68,637.64,0.28772754]
[1739271746705,0.31265632,639.68,637.65,0.28772754]
[1739271746905,0.31265632,639.68,637.66,0.28772754]
[1739271747107,0.31265632,639.68,637.67,0.28772754]
[1739271747308,0.31265632,639.68,637.68,0.28772754]
[1739271747508,0.31265632,639.68,637.69,0.28772754]
[1739271747807,0.31265632,639.68,637.62,0.28772754]
[1739271748005,0.31265632,639.68,637.63,0.28772754]
[1739271748203,0.31265632,639.68,637.62,0.28772754]
[1739271748406,0.31265632,639.68,637.63,0.28772754]
[1739271748605,0.31265632,639.68,637.61,0.93911479]
[1739271748801,0.31265632,639.68,637.62,0.28772754]
[1739271749007,0.31265632,639.68,637.63,0.28772754]
[1739271749208,0.31265632,639.68,637.61,0.65138725]
[1739271749209,0.31265632,639.68,637.62,1.44835336]
[1739271749407,0.31265632,639.68,637.64,0.28772754]
[1739271749706,0.31265632,639.68,637.65,0.28772754]
[1739271749906,0.31265632,639.68,637.63,0.93911479]
[1739271750206,0.31265632,639.68,637.64,0.28772754]
[1739271750507,0.31265632,639.68,637.63,0.93911479]
[1739271750707,0.31265632,639.68,637.64,0.28772754]
[1739271750908,0.31265632,639.68,637.63,0.93911479]
[1739271751103,0.31265632,639.68,637.64,0.28772754]
[1739271751303,0.31265632,639.68,637.63,0.93911479]
[1739271751607,0.31265632,639.68,637.64,0.28772754]
[1739271751811,0.31265632,639.68,637.63,0.93911479]
[1739271752207,0.31265632,639.68,637.64,0.93911479]
[1739271752403,0.31265632,639.68,637.65,0.93911479]
[1739271752607,0.31265632,639.68,637.66,0.93911479]
[1739271752811,0.31265632,639.68,637.58,0.93911479]
[1739271753109,0.31265632,639.68,637.59,0.60140874]
[1739271753309,0.31265632,639.68,637.6,0.31367628]
[1739271753710,0.31265632,639.68,637.61,0.93893915]
[1739271754106,0.31265632,639.68,637.62,0.31366644]
[1739271754305,0.31265632,639.68,637.63,0.93893915]
[1739271754513,0.31265632,639.68,637.71,1.16062582]
[1739271754707,0.31265632,639.68,637.72,0.28772754]
[1739271757319,0.31265632,639.68,637.72,1.44835336]
[1739271757515,0.31265632,639.68,637.73,0.28772754]
[1739271757816,0.31265632,639.68,637.73,0.93888857]
[1739271758018,0.31265632,639.68,637.74,0.60133496]
[1739271758215,0.31265632,639.68,637.75,1.25249107]
[1739271758413,0.31265632,639.68,637.76,0.60132513]
[1739271758614,0.31265632,639.68,637.77,0.60132021]
[1739271758817,0.31265632,639.68,637.78,1.25247632]
[1739271759013,0.31265632,639.68,637.79,1.25247141]
[1739271759221,0.31265632,639.68,637.8,1.25246649]
[1739271759420,0.31265632,639.68,637.81,1.25246157]
[1739271759719,0.31265632,639.68,637.82,1.25245666]
[1739271759918,0.31265632,639.68,637.93,1.16062582]
[1739271760117,0.31265632,639.68,637.94,0.28772754]
[1739271760719,0.31265632,639.68,637.95,0.28772754]
[1739271760921,0.31265632,639.68,637.96,0.28772754]
[1739271761120,0.31265632,639.68,637.97,0.28772754]
[1739271761320,0.31265632,639.68,637.94,0.93882541]
[1739271761521,0.31265632,639.68,637.95,0.28772754]
[1739271761919,0.31265632,639.68,637.96,0.28772754]
[1739271762215,0.31265632,639.68,637.97,0.28772754]
[1739271762414,0.31265632,639.68,637.94,0.93901021]
[1739271762715,0.31265632,639.68,637.95,0.28772754]
[1739271763023,0.31265632,639.68,637.96,0.28772754]
[1739271763319,0.31265632,639.68,637.86,1.16062582]
[1739271763519,0.31265632,639.68,637.87,0.93901617]
[1739271766321,0.31265632,639.68,637.75,0.93901617]
[1739271766522,0.31265632,639.68,637.76,0.93901617]
[1739271766821,0.31265632,639.68,637.77,0.93901617]
[1739271767018,0.31265632,639.68,637.77,0.28769527]
[1739271767221,0.31265632,639.68,637.78,0.28769527]
[1739271767416,0.31265632,639.68,637.79,0.28769527]
[1739271767617,0.31265632,639.68,637.8,0.28769527]
[1739271767819,0.31265632,639.68,637.81,0.28769527]
[1739271768019,0.31265632,639.68,637.82,0.28769527]
[1739271768215,0.31265632,639.68,637.83,0.28769527]
[1739271768517,0.31265632,639.68,637.84,0.28769527]
[1739271768720,0.31265632,639.68,637.85,0.28769527]
[1739271768920,0.31265632,639.68,637.86,0.28769527]
[1739271769119,0.31265632,639.68,637.87,0.28769527]
[1739271769319,0.31265632,639.68,637.88,0.28769527]
[1739271769519,0.31265632,639.68,637.83,1.16062582]
[1739271769520,0.31265632,639.68,637.89,0.28769527]
[1739271769721,0.31265632,639.68,637.83,1.16062582]
[1739271769722,0.31265632,639.68,637.9,0.28769527]
[1739271769922,0.31265632,639.68,637.91,0.28769527]
[1739271770122,0.31265632,639.68,637.92,0.28769527]
[1739271770423,0.31265632,639.68,637.93,0.28768127]
[1739271770722,0.31265632,639.68,637.84,0.28768127]
[1739271770922,0.31265632,639.68,637.85,0.28768127]
[1739271771223,0.31265632,639.68,637.86,0.28768127]
[1739271771522,0.31265632,639.68,637.87,0.28768127]
[1739271771715,0.31265632,639.68,637.84,0.28768127]
[1739271771921,0.31265632,639.68,637.85,0.28768127]
[1739271772118,0.31265632,639.68,637.84,0.28768127]
[1739271772323,0.31265632,639.68,637.85,0.28768127]
[1739271772523,0.31265632,639.68,637.86,0.28768127]
[1739271772720,0.31265632,639.68,637.87,0.28768127]
[1739271773025,0.31265632,639.68,637.88,0.28768127]
[1739271773216,0.31265632,639.68,637.73,0.28768127]
[1739271773422,0.31265632,639.68,637.74,0.28768127]
[1739271773618,0.31265632,639.68,637.73,0.28768127]
[1739271773821,0.31265632,639.68,637.74,0.28768127]
[1739271774022,0.31265632,639.68,637.75,0.28768127]
[1739271774220,0.31265632,639.68,637.8,1.16062582]
[1739271774421,0.31265632,639.68,637.81,0.28768127]
[1739271774821,0.31265632,639.68,637.82,0.28768127]
[1739271775021,0.31265632,639.68,637.83,0.28768127]
[1739271775227,0.31265632,639.68,637.84,0.28768127]
[1739271775426,0.31265632,639.68,637.81,0.65114592]
[1739271775427,0.31265632,639.68,637.85,0.28768127]
[1739271775625,0.31265632,639.68,637.86,0.28768127]
[1739271775822,0.31265632,639.68,637.82,0.28768127]
[1739271776026,0.31265632,639.68,637.83,0.28768127]
[1739271776223,0.31265632,639.68,637.84,0.28768127]
[1739271776427,0.31265632,639.68,637.85,0.28768127]
[1739271776630,0.31265632,639.68,637.86,0.28768127]
[1739271776826,0.31265632,639.68,637.81,0.65114592]
[1739271776827,0.31265632,639.68,638.08,1.16062582]
[1739271777027,0.31265632,639.68,638.09,0.28768127]
[1739271779227,0.31265632,639.68,638.09,1.44830709]
[1739271779421,0.31265632,639.68,638.1,0.28768127]
[1739271781029,0.31265632,639.68,638.11,0.28765636]
[1739271781230,0.31265632,639.68,638.1,0.28765636]
[1739271781631,0.31265632,639.68,638.12,1.16062582]
[1739271781831,0.31265632,639.68,638.13,0.28765636]
[1739271784133,0.31265632,639.68,638.05,0.28765636]
[1739271784435,0.31265632,639.68,638.06,0.28765636]
[1739271784726,0.31265632,639.68,638.07,0.28765636]
[1739271784927,0.31265632,639.68,638.08,0.28765636]
[1739271785132,0.31265632,639.68,638.04,1.16062582]
[1739271785133,0.31265632,639.68,638.09,0.28765636]
[1739271785325,0.31265632,639.68,638.1,0.28765636]
[1739271785526,0.31265632,639.68,638.11,0.28765636]